fUSD/lending_fUSD_20240905
["ID","MTS","AMOUNT","RATE_DAILY","PERIOD"]
[337223719,1725510639739,-320.62918502,0.000149,2]
[337223720,1725510639752,-19988.33233355,0.000149,2]
[337223721,1725510639766,-347.78074878,0.000149,2]
[337223722,1725510639827,-322.85018007,0.000149,2]
[337223729,1725510642851,-456.4016894,0.000149,2]
[337223731,1725510642863,-117986.87523125,0.000149,2]
[337223733,1725510642873,-763.1462,0.000149,2]
[337223735,1725510642882,-38952.145,0.000149,2]
[337223738,1725510642891,-249.7819,0.000149,2]
[337223741,1725510642900,-596.2597,0.000149,2]
[337223743,1725510642909,-100000.0,0.000149,2]
[337223744,1725510642920,-150.0,0.000149,2]
[337223745,1725510642932,-1638.0,0.000149,2]
[337223746,1725510642942,-161.95141977,0.000149,2]
[337223747,1725510642952,-157.1959,0.000149,2]
[337223748,1725510642962,-489.57862812,0.000149,2]
[337223749,1725510642972,-321.83267328,0.000149,2]
[337223750,1725510642983,-181.77573316,0.000149,2]
[337223751,1725510642993,-1176.49161774,0.000149,2]
[337223752,1725510643002,-150.0,0.00014902,2]
[337223753,1725510643012,-150.0,0.00014907,2]
[337223754,1725510643022,-150.0,0.00014909,2]
[337223755,1725510643032,-150.0,0.00014911,2]
[337223756,1725510643042,-150.0,0.00014913,2]
[337223757,1725510643053,-150.0,0.00014913,2]
[337223758,1725510643064,-150.0,0.00014915,2]
[337223759,1725510643380,-150.0,0.00014919,2]
[337223760,1725510643398,-150.0,0.00014921,2]
[337223761,1725510643412,-150.0,0.00014926,2]
[337223762,1725510643424,-150.0,0.00014927,2]
[337223763,1725510643435,-1511.44284122,0.00014927,2]
[337223764,1725510643446,-1500.0,0.0001493,2]
[337223765,1725510643456,-150.0,0.00014931,2]
[337223766,1725510643465,-150.0,0.00014932,2]
[337223767,1725510643475,-158.816,0.00014935,2]
[337223768,1725510643485,-150.0,0.00014938,2]
[337223769,1725510643495,-150.0,0.00014938,2]
[337223770,1725510643504,-150.0,0.00014939,2]
[337223771,1725510643514,-1890.92741,0.0001494,2]
[337223772,1725510643524,-150.0,0.00014942,2]
[337223773,1725510643533,-760.0,0.00014944,2]
[337223774,1725510643543,-150.0,0.00014947,2]
[337223775,1725510643552,-274.23202314,0.00014953,2]
[337223776,1725510643562,-150.0,0.00014957,2]
[337223777,1725510643571,-150.0,0.00014957,2]
[337223778,1725510643580,-150.0,0.00014958,2]
[337223779,1725510643589,-150.0,0.0001496,2]
[337223780,1725510643598,-150.0,0.00014969,2]
[337223781,1725510643607,-150.0,0.00014969,2]
[337223782,1725510643617,-150.0,0.00014971,2]
[337223783,1725510643626,-209.02429914,0.00014973,2]
[337223784,1725510643635,-501.18325815,0.00014973,2]
[337223785,1725510643644,-202.64007542,0.00014973,2]
[337223786,1725510643653,-150.0,0.00014974,2]
[337223787,1725510643662,-150.0,0.00014978,2]
[337223788,1725510643671,-3051.27198916,0.0001498,3]
[337223789,1725510643681,-3051.27198916,0.00014983,3]
[337223790,1725510643690,-1500.0,0.00014983,2]
[337223791,1725510643699,-150.0,0.00014986,2]
[337223792,1725510643708,-168.4018757,0.00014986,2]
[337223793,1725510643717,-273.12363701,0.00014986,2]
[337223794,1725510643727,-184.32398655,0.00014986,2]
[337223795,1725510643737,-150.0,0.00014989,2]
[337223796,1725510643747,-88486.8876856,0.0001499,3]
[337223797,1725510643757,-723.5828027,0.0001499,2]
[337223798,1725510643765,-718.7688509,0.0001499,2]
[337223799,1725510643775,-713.9548991,0.0001499,2]
[337223800,1725510643784,-709.1409473,0.0001499,2]
[337223801,1725510643793,-704.3269955,0.0001499,2]
[337223802,1725510643803,-4132.6843255,0.0001499,2]
[337223803,1725510643812,-4105.1898313,0.0001499,2]
[337223804,1725510643821,-4077.6953371,0.0001499,2]
[337223805,1725510643830,-4050.200843,0.0001499,2]
[337223806,1725510643840,-4022.7063488,0.0001499,2]
[337223807,1725510643849,-66147.47745478,0.0001499,2]
[337223808,1725510643858,-36615.2638699,0.0001499,3]
[337223809,1725510643867,-150.0,0.00014991,2]
[337223810,1725510643878,-150.0,0.00014993,2]
[337223811,1725510643887,-752.54200153,0.00014993,2]
[337223812,1725510643899,-144.60101934,0.00014993,2]
[337223813,1725510643909,-728.3967545,0.00014993,2]
[337223814,1725510643919,-4160.1788196,0.00014993,2]
[337223815,1725510643930,-150.0,0.00014996,2]
[337223816,1725510643939,-4445.44067222,0.00014999,2]
[337223817,1725510643950,-150.0,0.00014999,2]
[337223818,1725510643959,-179.84702373,0.00014999,2]
[337223819,1725510643968,-6014.6286759,0.00015,2]
[337223820,1725510643979,-2257.25906638,0.00015,2]
[337223822,1725510645511,-321.56691331,0.00014744,2]
[337223823,1725510645524,-5468.97478669,0.00014744,2]
[337223824,1725510645533,-179.08205058,0.000148,2]
[337223825,1725510645543,-150.0,0.000149,2]
[337223826,1725510645553,-9195.21308224,0.00015,2]
[337223827,1725510645570,-1766.30737403,0.00015,2]
[337223828,1725510645685,-1675.2,0.00015,2]
[337223829,1725510645744,-3337.89376783,0.00015,2]
[337223834,1725510680493,550.0,0.00011,2]
[337223836,1725510841114,590.39,0.00011912,2]
[337223840,1725510974789,-1000.0,0.00015,30]
[337223842,1725511018249,166.08,0.00010959,2]
[337223844,1725511029967,-500.0,0.00015,30]
[337223845,1725511062536,-500.0,0.00015,30]
[337223846,1725511110198,1000.0,0.00027,120]
[337223847,1725511342342,580.99,0.00011809,2]
[337223851,1725511486112,165.69,0.00010959,2]
[337223853,1725511603805,-600.0,0.00013,2]
[337223854,1725511603830,-1500.0,0.00013656,2]
[337223855,1725511603852,-250.0,0.00013695,2]
[337223856,1725511603875,-250.0,0.00013696,2]
[337223857,1725511603898,-777.44,0.00013697,2]
[337223858,1725511603919,-152.86,0.00013699,2]
[337223859,1725511603941,-150.0,0.00013699,2]
[337223860,1725511603963,-250.0,0.00013707,2]
[337223861,1725511603985,-400.0,0.00013729,2]
[337223862,1725511604006,-200.0,0.00013753,2]
[337223863,1725511604039,-23900.0,0.00013762,2]
[337223864,1725511785148,1891.61392975,0.00012,2]
[337223865,1725511831674,-168.69,0.00013808,2]
[337223866,1725511831683,-200.0,0.00013808,2]
[337223867,1725511831693,-840.0,0.00013809,2]
[337223868,1725511831702,-171.55,0.00013822,2]
[337223869,1725511831711,-580.99,0.00014073,2]
[337223870,1725511831720,-205.94,0.0001436,2]
[337223871,1725511831729,-150.0,0.000146,2]
[337223872,1725511831738,-150.0,0.00014699,2]
[337223873,1725511831746,-4176.4939,0.000147,2]
[337223874,1725511831755,-18481.4273,0.000147,2]
[337223875,1725511831764,-2749.6354,0.000147,2]
[337223876,1725511831774,-1000.0,0.000147,2]
[337223877,1725511831784,-1000.0,0.000147,2]
[337223878,1725511831792,-2500.0,0.000147,2]
[337223879,1725511831802,-150.0,0.00014728,2]
[337223880,1725511831813,-499.99,0.00014728,2]
[337223881,1725511831822,-150.0,0.00014729,2]
[337223882,1725511831835,-150.0,0.0001473,2]
[337223883,1725511831844,-150.0,0.00014731,2]
[337223884,1725511831854,-150.0,0.00014739,2]
[337223885,1725511831863,-150.0,0.00014741,2]
[337223886,1725511831875,-150.0,0.00014744,2]
[337223887,1725511831884,-150.0,0.00014745,2]
[337223888,1725511831893,-150.0,0.00014746,2]
[337223889,1725511831902,-150.0,0.00014749,2]
[337223890,1725511831911,-150.0,0.0001475,2]
[337223891,1725511831920,-150.0,0.00014751,2]
[337223892,1725511831929,-150.0,0.00014753,2]
[337223893,1725511831938,-150.0,0.00014758,2]
[337223894,1725511831949,-150.0,0.00014759,2]
[337223895,1725511831958,-150.0,0.0001476,2]
[337223896,1725511831967,-150.0,0.0001476,2]
[337223897,1725511831976,-150.0,0.00014761,2]
[337223898,1725511831985,-150.0,0.00014763,2]
[337223899,1725511831994,-150.0,0.00014764,2]
[337223900,1725511832003,-150.0,0.00014766,2]
[337223901,1725511832013,-150.0,0.00014769,2]
[337223902,1725511832022,-197.165908,0.00014769,2]
[337223903,1725511832030,-150.0,0.00014772,2]
[337223904,1725511832039,-150.0,0.00014774,2]
[337223905,1725511832049,-150.0,0.00014775,2]
[337223907,1725511832059,-150.0,0.00014778,2]
[337223908,1725511832067,-150.0,0.00014783,2]
[337223909,1725511832076,-150.0,0.00014786,2]
[337223910,1725511832085,-150.0,0.00014789,2]
[337223912,1725511832094,-150.0,0.00014789,2]
[337223914,1725511832103,-150.0,0.00014791,2]
[337223916,1725511832112,-150.0,0.00014791,2]
[337223918,1725511832121,-150.0,0.00014793,2]
[337223920,1725511832130,-150.0,0.00014794,2]
[337223921,1725511832140,-292.442803,0.00014795,2]
[337223922,1725511832149,-150.0,0.00014795,2]
[337223923,1725511832158,-150.0,0.00014796,2]
[337223924,1725511832169,-150.0,0.00014798,2]
[337223925,1725511832178,-500.0,0.00014799,2]
[337223926,1725511832187,-500.0,0.00014799,2]
[337223927,1725511832196,-500.0,0.00014799,2]
[337223928,1725511832205,-618.05823962,0.00014799,2]
[337223929,1725511832214,-500.0,0.00014799,2]
[337223930,1725511832222,-500.0,0.00014799,2]
[337223931,1725511832232,-500.0,0.00014799,2]
[337223932,1725511832241,-500.0,0.00014799,2]
[337223933,1725511832250,-500.0,0.00014799,2]
[337223934,1725511832259,-393.77421558,0.00014799,2]
[337223935,1725511832268,-500.0,0.00014799,2]
[337223936,1725511832277,-212.5945,0.000148,2]
[337223937,1725511832286,-693.1867,0.000148,2]
[337223938,1725511832295,-38952.145,0.000148,2]
[337223939,1725511832303,-100000.0,0.000148,2]
[337223940,1725511832312,-1000.0,0.000148,2]
[337223941,1725511832323,-1000.0,0.000148,6]
[337223942,1725511832332,-1000.0,0.000148,7]
[337223943,1725511832342,-1000.0,0.000148,8]
[337223944,1725511832352,-7500.0,0.000148,2]
[337223945,1725511832361,-150.0,0.000148,2]
[337223946,1725511832371,-150.0,0.000148,2]
[337223947,1725511832380,-150.0,0.000148,2]
[337223948,1725511832389,-150.0,0.000148,2]
[337223949,1725511832401,-150.0,0.000148,2]
[337223950,1725511832410,-321.8326733,0.000148,2]
[337223951,1725511832420,-150.0,0.000148,2]
[337223952,1725511832430,-150.0,0.000148,2]
[337223953,1725511832441,-150.0,0.00014808,2]
[337223954,1725511832452,-150.0,0.00014812,2]
[337223955,1725511832463,-150.0,0.00014817,2]
[337223956,1725511832472,-150.0,0.00014818,2]
[337223957,1725511832482,-150.0,0.00014828,2]
[337223958,1725511832491,-150.0,0.00014829,2]
[337223959,1725511832501,-150.0,0.00014831,2]
[337223960,1725511832509,-150.0,0.00014839,2]
[337223961,1725511832518,-150.0,0.00014842,2]
[337223962,1725511832527,-150.0,0.00014844,2]
[337223963,1725511832536,-150.0,0.00014846,2]
[337223964,1725511832545,-150.0,0.00014848,2]
[337223965,1725511832554,-150.0,0.00014849,2]
[337223966,1725511832563,-296.8016,0.0001485,2]
[337223967,1725511832572,-150.0,0.00014855,2]
[337223968,1725511832581,-150.0,0.00014856,2]
[337223969,1725511832590,-150.0,0.0001486,2]
[337223970,1725511832600,-150.0,0.00014861,2]
[337223971,1725511832610,-150.0,0.00014861,2]
[337223972,1725511832619,-150.0,0.00014869,2]
[337223973,1725511832628,-500.0,0.00014873,2]
[337223974,1725511832638,-150.0,0.00014873,2]
[337223975,1725511832647,-150.0,0.00014878,2]
[337223976,1725511832657,-150.0,0.00014884,2]
[337223977,1725511832668,-150.0,0.0001489,2]
[337223978,1725511832679,-150.0,0.00014891,2]
[337223979,1725511832688,-150.0,0.00014893,2]
[337223980,1725511832699,-150.0,0.00014896,2]
[337223981,1725511832708,-150.0,0.00014898,2]
[337223982,1725511832717,-500.0,0.000149,2]
[337223983,1725511832726,-245000.0,0.000149,2]
[337223984,1725511832735,-1240.9058,0.000149,2]
[337223985,1725511832744,-181.3849,0.000149,2]
[337223986,1725511832753,-6514.88877047,0.000149,2]
[337223987,1725511832766,-3586.11267,0.000149,2]
[337223988,1725511832780,-1415.43626018,0.000149,2]
[337223989,1725511832792,-5193.83609935,0.000149,2]
[337223990,1725511832801,-150.0,0.000149,2]
[337223991,1725511832810,-301.53,0.000149,2]
[337223992,1725511832819,-150.0,0.000149,2]
[337223993,1725511832829,-337.36451568,0.000149,2]
[337223994,1725511832841,-200.24465847,0.000149,2]
[337223995,1725511832849,-1822.0,0.000149,2]
[337223996,1725511832858,-4959.0200032,0.000149,2]
[337223997,1725511832868,-150.0,0.00014902,2]
[337223998,1725511832878,-150.0,0.00014905,2]
[337223999,1725511832887,-150.0,0.00014906,2]
[337224000,1725511832896,-150.0,0.00014906,2]
[337224001,1725511832906,-150.0,0.00014908,2]
[337224002,1725511832915,-150.0,0.0001491,2]
[337224003,1725511832925,-150.0,0.00014918,2]
[337224004,1725511832933,-150.0,0.00014919,2]
[337224005,1725511832945,-150.0,0.00014923,2]
[337224006,1725511832954,-150.0,0.00014926,2]
[337224007,1725511832962,-150.0,0.00014932,2]
[337224008,1725511832971,-150.0,0.00014932,2]
[337224009,1725511832980,-158.817,0.00014935,2]
[337224010,1725511832989,-150.0,0.00014935,2]
[337224011,1725511832998,-150.0,0.00014943,2]
[337224012,1725511833007,-150.0,0.00014943,2]
[337224013,1725511833015,-150.0,0.00014946,2]
[337224014,1725511833024,-150.0,0.0001495,2]
[337224015,1725511833033,-150.0,0.0001495,2]
[337224016,1725511833041,-150.0,0.00014953,2]
[337224017,1725511833050,-150.0,0.00014955,2]
[337224018,1725511833059,-150.0,0.00014955,2]
[337224019,1725511833069,-150.0,0.00014962,2]
[337224020,1725511833078,-150.0,0.00014967,2]
[337224021,1725511833087,-500.47075187,0.00014973,2]
[337224022,1725511833096,-201.13894342,0.00014973,2]
[337224023,1725511833105,-179.72998242,0.00014973,2]
[337224024,1725511833114,-500.3680834,0.00014973,2]
[337224025,1725511833124,-156.1698527,0.00014973,2]
[337224026,1725511833133,-150.0,0.00014977,2]
[337224027,1725511833143,-150.0,0.00014979,2]
[337224028,1725511833152,-5271.4728966,0.0001498,3]
[337224029,1725511833161,-152.31,0.0001498,2]
[337224030,1725511833172,-150.0,0.0001498,2]
[337224031,1725511833181,-150.0,0.00014982,2]
[337224032,1725511833190,-825.0,0.00014984,2]
[337224033,1725511833200,-150.0,0.00014987,2]
[337224034,1725511833209,-26357.364483,0.0001499,3]
[337224035,1725511833218,-150.0,0.0001499,2]
[337224036,1725511833227,-150.0,0.0001499,2]
[337224037,1725511833237,-150.0,0.00014994,2]
[337224038,1725511833246,-150.0,0.00014995,2]
[337224039,1725511833256,-150.0,0.00014996,2]
[337224040,1725511833266,-150.0,0.00014998,2]
[337224041,1725511833276,-1217.97480628,0.00014999,2]
[337224042,1725511833285,-150.0,0.00014999,3]
[337224043,1725511833295,-150.0,0.00014999,2]
[337224044,1725511833304,-322.15478685,0.00014999,2]
[337224045,1725511833314,-277750.41585765,0.00015,2]
[337224046,1725511833324,-62014.38620243,0.00015,2]
[337224047,1725511833336,-406.19998346,0.00015,2]
[337224048,1725511833348,-2722.12504729,0.00015,2]
[337224049,1725511833359,-135600.0,0.00015,2]
[337224050,1725511833371,-1230.01759857,0.00015,2]
[337224051,1725511833383,-2514.72665498,0.00015,2]
[337224052,1725511833394,-22916.49869489,0.00015,2]
[337224053,1725511833405,-2850.4465138,0.00015,2]
[337224054,1725511833535,-1306.0,0.00015,2]
[337224055,1725511833547,-1679.06194262,0.00015,2]
[337224056,1725511833565,-9835.58180308,0.00015,2]
[337224057,1725511833576,-929.99995,0.00015,2]
[337224059,1725511837681,-686.50000001,0.00015,2]
[337224060,1725511837692,-6157.08148719,0.00015,2]
[337224061,1725511837705,-27654.0,0.00015,2]
[337224062,1725511837717,-484.43905378,0.00015,2]
[337224063,1725511837736,-4236.72490095,0.00015,2]
[337224064,1725511837747,-1116.50326628,0.00015,2]
[337224065,1725511837758,-712.43225591,0.00015,2]
[337224066,1725511837880,-320.46714345,0.00015,2]
[337224067,1725511837891,-1605.98,0.00015,2]
[337224068,1725511837904,-16741.38379213,0.00015,2]
[337224069,1725511837955,-2200.0,0.00015,2]
[337224070,1725511837967,-2549.55900004,0.00015,2]
[337224071,1725511837977,-1495.67112458,0.00015,2]
[337224072,1725511838011,-2729.50797907,0.00015,2]
[337224078,1725511839678,-374.07477111,0.00015,2]
[337224079,1725511839690,-291.88343201,0.00015,2]
[337224080,1725511839735,-5568.99582229,0.00015,2]
[337224081,1725511839900,-500.0,0.00015,2]
[337224082,1725511839914,-462.7030002,0.00015,2]
[337224083,1725511840009,-5719.53545259,0.00015,2]
[337224084,1725511840020,-4285.7862628,0.00015,2]
[337224085,1725511840032,-3470.18292958,0.00015,2]
[337224090,1725511842687,-1217.50675063,0.00015,2]
[337224092,1725511842698,-263.40971968,0.00015,2]
[337224094,1725511842711,-1433.76304378,0.00015,2]
[337224095,1725511842722,-469339.1962655,0.00015,2]
[337224096,1725511842732,-741.0,0.00015,2]
[337224097,1725511842741,-1215598.26985106,0.00015,2]
[337224098,1725511842752,-2086041.03197912,0.00015,2]
[337224099,1725511842764,-508.350001,0.00015,2]
[337224100,1725511842801,-401.47892665,0.00015,2]
[337224101,1725511842863,-598.53696418,0.00015,2]
[337224102,1725511842874,-2564.133,0.00015,2]
[337224131,1725511845712,-250.0,0.00014742,2]
[337224133,1725511845722,-893.40519,0.00015,2]
[337224135,1725511845733,-1143.40519,0.00015,2]
[337224137,1725511845744,-480.34,0.00015,2]
[337224139,1725511845755,-695.19249147,0.00015,2]
[337224141,1725511845766,-285.56665977,0.00015,2]
[337224143,1725511845777,-1583.17448043,0.00015,2]
[337224145,1725511845788,-500.0,0.00015,2]
[337224150,1725511845829,-1019.8443338,0.00015,2]
[337224176,1725511846086,-433.9560001,0.00015,2]
[337224179,1725511846098,-608.35712949,0.00015,2]
[337224181,1725511846112,-3979.28148486,0.00015,2]
[337228687,1725511926923,813.4505598,0.00027,120]
[337228688,1725512010397,500.0,0.00026192,120]
[337228689,1725512030404,372.69,0.00010959,2]
[337228690,1725512126255,-500.0,0.00015,30]
[337228691,1725512491583,550.0,0.00011,2]
[337228692,1725512494541,-586.76,0.00012006,2]
[337228693,1725512494562,-600.0,0.00013,2]
[337228694,1725512494582,-175.34664172,0.00013722,2]
[337228695,1725512494602,-159.55080724,0.00013822,2]
[337228696,1725512494621,-250.0,0.0001385,2]
[337228697,1725512494641,-152.86,0.00013893,2]
[337228698,1725512494660,-250.0,0.00013922,2]
[337228699,1725512494680,-328.0,0.00013955,2]
[337228700,1725512494699,-200.0,0.00013976,2]
[337228701,1725512494721,-47.48255104,0.00013988,2]
[337228702,1725512513871,204.55,0.00010959,2]
[337228703,1725512611950,500.0,0.00025656,120]
[337228704,1725512716289,-903.70872344,0.00013896,2]
[337228705,1725512716311,-196.29127656,0.00013943,2]
[337228706,1725512740417,-541.30872344,0.00013943,2]
[337228707,1725512740440,-152.51744896,0.00013988,2]
[337228708,1725512740463,-250.0,0.00013996,2]
[337228709,1725512740488,-156.1738276,0.00013996,2]
[337228710,1725512768940,1832.0,0.00027,120]
[337228712,1725512999646,-447.30678492,0.00012064,2]
[337228713,1725513031379,277.62,0.00010959,2]
[337228720,1725513031825,-133.00321508,0.00012064,2]
[337228721,1725513031834,-168.69,0.00013942,2]
[337228722,1725513031843,-360.0,0.00013947,2]
[337228723,1725513031853,-250.0,0.00013956,2]
[337228724,1725513031862,-620.6361724,0.00013996,2]
[337228725,1725513031872,-580.31,0.00014328,2]
[337228726,1725513031880,-159.55080723,0.000147,2]
[337228727,1725513031890,-500.0,0.00014773,2]
[337228728,1725513031900,-150.0,0.00014799,2]
[337228729,1725513031909,-299.99,0.00014799,2]
[337228730,1725513031919,-4752.3793,0.000148,2]
[337228731,1725513031928,-30155.2327,0.000148,2]
[337228732,1725513031937,-7500.0,0.000148,2]
[337228733,1725513031947,-965.0031,0.000148,2]
[337228734,1725513031956,-499.99,0.000148,2]
[337228735,1725513031966,-1507.95294,0.0001485,2]
[337228736,1725513031975,-500.0,0.00014873,2]
[337228737,1725513031984,-160.21769134,0.00014873,2]
[337228738,1725513031993,-196.02462346,0.0001489,3]
[337228739,1725513032003,-500.0,0.00014899,2]
[337228740,1725513032012,-304.29282761,0.00014899,2]
[337228741,1725513032022,-500.0,0.00014899,2]
[337228742,1725513032032,-511.75661027,0.00014899,2]
[337228743,1725513032043,-500.0,0.00014899,2]
[337228744,1725513032053,-500.0,0.00014899,2]
[337228745,1725513032062,-500.0,0.00014899,2]
[337228746,1725513032072,-500.0,0.00014899,2]
[337228747,1725513032081,-500.0,0.00014899,2]
[337228748,1725513032091,-328.60153973,0.00014899,2]
[337228749,1725513032100,-328.60153968,0.00014899,2]
[337228750,1725513032109,-328.60153968,0.00014899,2]
[337228751,1725513032119,-328.60153968,0.00014899,2]
[337228752,1725513032129,-328.60153968,0.000149,2]
[337228753,1725513032138,-328.60153968,0.000149,2]
[337228754,1725513032149,-154058.8428,0.000149,2]
[337228755,1725513032160,-38952.145,0.000149,2]
[337228756,1725513032169,-30604.36461717,0.000149,2]
[337228757,1725513032183,-69395.63538283,0.000149,2]
[337228758,1725513032192,-460.2072,0.000149,2]
[337228759,1725513032201,-328.60153968,0.000149,2]
[337228760,1725513032211,-676.57453432,0.000149,2]
[337228761,1725513032220,-169.14363358,0.000149,2]
[337228762,1725513032230,-152.83558693,0.000149,2]
[337228763,1725513032239,-324.9391,0.000149,2]
[337228764,1725513032248,-728.92133327,0.000149,2]
[337228765,1725513032257,-328.60153968,0.000149,2]
[337228766,1725513032266,-10416.84101971,0.000149,2]
[337228767,1725513032278,-1536.69297289,0.000149,2]
[337228768,1725513032289,-7754.42701364,0.000149,2]
[337228769,1725513032298,-158.817,0.00014938,2]
[337228770,1725513032307,-588.07387038,0.0001498,3]
[337228771,1725513032316,-392.04924692,0.0001498,3]
[337228772,1725513032325,-1112.79150441,0.0001498,3]
[337228773,1725513032335,-4456.07267443,0.0001499,3]
[337228774,1725513032353,-295.44814184,0.0001499,3]
[337228775,1725513032364,-1296.1257819,0.0001499,3]
[337228776,1725513032375,-968.61574791,0.0001499,3]
[337228777,1725513032388,-8562.81871562,0.0001499,3]
[337228778,1725513032398,-156.34,0.0001499,2]
[337228779,1725513032408,-6676.74902646,0.0001499,3]
[337228780,1725513032624,-321.99545336,0.00014999,2]
[337228781,1725513032642,-523.97528693,0.00014999,2]
[337228782,1725513032652,-500.0,0.00014999,2]
[337228783,1725513032661,-500.16054002,0.00014999,2]
[337228784,1725513032670,-500.0,0.00014999,2]
[337228785,1725513032680,-500.0,0.00014999,2]
[337228786,1725513032690,-500.0,0.00014999,2]
[337228787,1725513032699,-500.0,0.00014999,2]
[337228788,1725513032709,-500.0,0.00014999,2]
[337228789,1725513032718,-500.0,0.00014999,2]
[337228790,1725513032727,-500.0,0.00014999,2]
[337228791,1725513032737,-369.6255029,0.00014999,2]
[337228792,1725513032746,-500.0,0.00014999,2]
[337228793,1725513032756,-500.0,0.00014999,2]
[337228794,1725513032765,-500.0,0.00014999,2]
[337228795,1725513032774,-389.75998275,0.00014999,2]
[337228796,1725513032784,-616.35,0.00014999,2]
[337228797,1725513032793,-500.0,0.00014999,2]
[337228798,1725513032803,-500.0,0.00014999,2]
[337228799,1725513032812,-729.0,0.00015,2]
[337228800,1725513032821,-134716.97772275,0.00015,2]
[337228801,1725513032833,-460.59415606,0.00015,2]
[337228802,1725513032844,-3235.93611025,0.00015,2]
[337228804,1725513037878,-199.45318187,0.00014899,2]
[337228805,1725513037888,-479.82677525,0.00015,2]
[337228806,1725513037934,-491.0010299,0.00015,2]
[337228807,1725513037945,-682.06040568,0.00015,2]
[337228808,1725513038098,-427.20419193,0.00015,2]
[337228809,1725513038155,-32102.92167983,0.00015,2]
[337228810,1725513038213,-3733.51914188,0.00015,2]
[337228811,1725513038225,-623.44199861,0.00015,2]
[337228812,1725513038236,-695.60287822,0.00015,2]
[337228813,1725513038247,-1332.05846622,0.00015,2]
[337228829,1725513039898,-7971.90000001,0.00015,2]
[337228830,1725513039916,-1008.46023857,0.00015,2]
[337228831,1725513039927,-1594.44684523,0.00015,2]
[337228832,1725513039954,-607.64675005,0.00015,2]
[337228833,1725513040013,-9599.89447516,0.00015,2]
[337228834,1725513040024,-3730.46532221,0.00015,2]
[337228835,1725513040036,-357.62458747,0.00015,2]
[337228836,1725513040075,-1267.23000001,0.00015,2]
[337228837,1725513040086,-1819.20996264,0.00015,2]
[337228838,1725513040097,-940.67929057,0.00015,2]
[337228839,1725513040130,-4564.99427688,0.00015,2]
[337228840,1725513040142,-419.77238971,0.00015,2]
[337228841,1725513040155,-1656.58520388,0.00015,2]
[337228842,1725513040167,-9681.60895399,0.00015,2]
[337228843,1725513040178,-1003.50055156,0.00015,2]
[337228844,1725513040189,-1531.85830089,0.00015,2]
[337228845,1725513040200,-1180.22303273,0.00015,2]
[337228846,1725513040347,-67.60875277,0.00015,2]
[337228847,1725513040359,-16909.28261235,0.00015,2]
[337228848,1725513040369,-38845.77453441,0.00015,2]
[337228849,1725513040381,-548.10622179,0.00015,2]
[337228850,1725513040392,-699.78547114,0.00015,2]
[337228851,1725513040403,-1424.0,0.00015,2]
[337228852,1725513040419,-276.91061512,0.00015,2]
[337228853,1725513040430,-1216.15843688,0.00015,2]
[337228854,1725513040441,-500.0,0.00015,2]
[337228855,1725513040452,-258705.62123894,0.00015,2]
[337228856,1725513040463,-649.0,0.00015,2]
[337228857,1725513040472,-218042.37016678,0.00015,2]
[337228858,1725513040483,-26941.28639219,0.00015,2]
[337228859,1725513040496,-339709.86079407,0.00015,2]
[337228860,1725513040551,-463.24121394,0.00015,2]